fUST/lending_fUST_20260616
["ID","MTS","AMOUNT","RATE_DAILY","PERIOD"]
[425211896,1781592643000,-500.0,0.00015319,2]
[425211867,1781592643000,-500.0,0.00015218,2]
[425211893,1781592643000,-500.0,0.00015234,2]
[425211884,1781592643000,-937.14,0.00015219,2]
[425211873,1781592643000,-500.0,0.00015218,2]
[425211874,1781592643000,-500.0,0.00015219,2]
[425211885,1781592643000,-500.0,0.00015219,2]
[425211875,1781592643000,-722.33,0.00015219,2]
[425211876,1781592643000,-500.0,0.00015219,2]
[425211878,1781592643000,-500.0,0.00015219,2]
[425211880,1781592643000,-500.0,0.00015219,2]
[425211879,1781592643000,-500.0,0.00015219,2]
[425211877,1781592643000,-505.0,0.00015219,2]
[425211886,1781592643000,-782.35,0.00015219,2]
[425211892,1781592643000,-500.0,0.00015234,2]
[425211881,1781592643000,-500.0,0.00015219,2]
[425211890,1781592643000,-500.0,0.00015234,2]
[425211888,1781592643000,-500.0,0.00015219,2]
[425211897,1781592643000,-5215.42,0.00015319,2]
[425211891,1781592643000,-500.0,0.00015234,2]
[425211898,1781592643000,-500.0,0.00015319,2]
[425211887,1781592643000,-881.47,0.00015219,2]
[425211883,1781592643000,-500.0,0.00015219,2]
[425211882,1781592643000,-500.0,0.00015219,2]
[425211954,1781592644000,-500.0,0.00015593,2]
[425211956,1781592644000,-500.0,0.00015593,2]
[425211955,1781592644000,-500.0,0.00015593,2]
[425211961,1781592644000,-500.0,0.00015766,2]
[425211958,1781592644000,-500.0,0.00015593,2]
[425211960,1781592644000,-500.0,0.00015593,2]
[425211951,1781592644000,-500.0,0.00015593,2]
[425211962,1781592644000,-500.0,0.00015766,2]
[425211959,1781592644000,-541.43,0.00015593,2]
[425211953,1781592644000,-500.0,0.00015593,2]
[425211964,1781592644000,-500.0,0.00015766,2]
[425211957,1781592644000,-1380.58,0.00015593,2]
[425211974,1781592644000,-505.0,0.00015767,2]
[425211967,1781592644000,-500.0,0.00015766,2]
[425211963,1781592644000,-500.0,0.00015766,2]
[425211965,1781592644000,-500.0,0.00015766,2]
[425211969,1781592644000,-500.0,0.00015766,2]
[425211970,1781592644000,-593.23,0.00015766,2]
[425211966,1781592644000,-500.0,0.00015766,2]
[425211972,1781592644000,-722.33,0.00015767,2]
[425211973,1781592644000,-500.0,0.00015767,2]
[425211971,1781592644000,-500.0,0.00015767,2]
[425211968,1781592644000,-500.0,0.00015766,2]
[425211976,1781592644000,-500.0,0.00015767,2]
[425211984,1781592644000,-881.47,0.00015767,2]
[425211980,1781592644000,-500.0,0.00015767,2]
[425211952,1781592644000,-916.52,0.00015593,2]
[425211975,1781592644000,-500.0,0.00015767,2]
[425211950,1781592644000,-500.0,0.00015593,2]
[425211922,1781592644000,-593.23,0.00015492,2]
[425211941,1781592644000,-500.0,0.00015508,2]
[425211983,1781592644000,-782.35,0.00015767,2]
[425211923,1781592644000,-500.0,0.00015493,2]
[425211921,1781592644000,-500.0,0.00015492,2]
[425211920,1781592644000,-500.0,0.00015492,2]
[425211925,1781592644000,-500.0,0.00015493,2]
[425211924,1781592644000,-722.33,0.00015493,2]
[425211937,1781592644000,-500.0,0.00015493,2]
[425211926,1781592644000,-505.0,0.00015493,2]
[425211939,1781592644000,-409.01964356,0.00015508,2]
[425211927,1781592644000,-500.0,0.00015493,2]
[425211938,1781592644000,-500.0,0.00015493,2]
[425211928,1781592644000,-500.0,0.00015493,2]
[425211929,1781592644000,-500.0,0.00015493,2]
[425211949,1781592644000,-500.0,0.00015593,2]
[425211932,1781592644000,-500.0,0.00015493,2]
[425211930,1781592644000,-500.0,0.00015493,2]
[425211935,1781592644000,-782.35,0.00015493,2]
[425211931,1781592644000,-500.0,0.00015493,2]
[425211934,1781592644000,-500.0,0.00015493,2]
[425211936,1781592644000,-881.47,0.00015493,2]
[425211940,1781592644000,-500.0,0.00015508,2]
[425211942,1781592644000,-500.0,0.00015508,2]
[425211944,1781592644000,-500.0,0.00015593,2]
[425211945,1781592644000,-500.0,0.00015593,2]
[425211947,1781592644000,-500.0,0.00015593,2]
[425211943,1781592644000,-754.91,0.00015593,2]
[425211946,1781592644000,-5215.42,0.00015593,2]
[425211948,1781592644000,-500.0,0.00015593,2]
[425211933,1781592644000,-937.14,0.00015493,2]
[425211986,1781592644000,-500.0,0.00015767,2]
[425212040,1781592644000,-186.0,0.00016112,2]
[425211978,1781592644000,-500.0,0.00015767,2]
[425212016,1781592644000,-614.19,0.0001604,2]
[425212017,1781592644000,-593.23,0.0001604,2]
[425212014,1781592644000,-500.0,0.0001604,2]
[425212019,1781592644000,-722.33,0.00016041,2]
[425212020,1781592644000,-500.0,0.00016041,2]
[425212018,1781592644000,-224.40602681,0.00016041,2]
[425212021,1781592644000,-505.0,0.00016041,2]
[425212023,1781592644000,-500.0,0.00016041,2]
[425212022,1781592644000,-500.0,0.00016041,2]
[425212024,1781592644000,-500.0,0.00016041,2]
[425212026,1781592644000,-500.0,0.00016041,2]
[425212035,1781592644000,-500.0,0.00016056,2]
[425212034,1781592644000,-500.0,0.00016056,2]
[425212027,1781592644000,-175.56755367,0.00016041,2]
[425212028,1781592644000,-937.14,0.00016041,2]
[425212029,1781592644000,-500.0,0.00016041,2]
[425212025,1781592644000,-500.0,0.00016041,2]
[425212030,1781592644000,-782.35,0.00016041,2]
[425212036,1781592644000,-500.0,0.00016056,2]
[425212032,1781592644000,-500.0,0.00016041,2]
[425212031,1781592644000,-881.47,0.00016041,2]
[425212033,1781592644000,-500.0,0.00016041,2]
[425211977,1781592644000,-500.0,0.00015767,2]
[425212039,1781592644000,-958.0,0.00016112,2]
[425212041,1781592644000,-754.91,0.00016141,2]
[425212042,1781592644000,-500.0,0.00016141,2]
[425212038,1781592644000,-1869.549,0.00016112,2]
[425212012,1781592644000,-500.0,0.0001604,2]
[425212015,1781592644000,-500.0,0.0001604,2]
[425212037,1781592644000,-1443.53,0.00016112,2]
[425212006,1781592644000,-541.43,0.00015867,2]
[425212013,1781592644000,-500.0,0.0001604,2]
[425211979,1781592644000,-500.0,0.00015767,2]
[425211981,1781592644000,-937.14,0.00015767,2]
[425211985,1781592644000,-500.0,0.00015767,2]
[425211998,1781592644000,-500.0,0.00015867,2]
[425211999,1781592644000,-916.52,0.00015867,2]
[425211988,1781592644000,-500.0,0.00015782,2]
[425211987,1781592644000,-500.0,0.00015782,2]
[425211990,1781592644000,-754.91,0.00015867,2]
[425211992,1781592644000,-500.0,0.00015867,2]
[425211996,1781592644000,-500.0,0.00015867,2]
[425211997,1781592644000,-500.0,0.00015867,2]
[425211994,1781592644000,-500.0,0.00015867,2]
[425211991,1781592644000,-500.0,0.00015867,2]
[425211982,1781592644000,-500.0,0.00015767,2]
[425211993,1781592644000,-5215.42,0.00015867,2]
[425211995,1781592644000,-441.68021327,0.00015867,2]
[425212008,1781592644000,-500.0,0.0001604,2]
[425212007,1781592644000,-500.0,0.00015867,2]
[425212004,1781592644000,-1380.58,0.00015867,2]
[425212003,1781592644000,-526.64469774,0.00015867,2]
[425212005,1781592644000,-500.0,0.00015867,2]
[425212011,1781592644000,-500.0,0.0001604,2]
[425212002,1781592644000,-500.0,0.00015867,2]
[425212000,1781592644000,-500.0,0.00015867,2]
[425212010,1781592644000,-500.0,0.0001604,2]
[425212001,1781592644000,-500.0,0.00015867,2]
[425212009,1781592644000,-500.0,0.0001604,2]
[425211989,1781592644000,-500.0,0.00015782,2]
[425212079,1781592645000,-500.0,0.00016315,2]
[425212076,1781592645000,-782.35,0.00016315,2]
[425212088,1781592645000,-500.0,0.00016415,2]
[425212072,1781592645000,-500.0,0.00016315,2]
[425212070,1781592645000,-500.0,0.00016315,2]
[425212068,1781592645000,-505.0,0.00016315,2]
[425212071,1781592645000,-500.0,0.00016315,2]
[425212066,1781592645000,-722.33,0.00016315,2]
[425212073,1781592645000,-500.0,0.00016315,2]
[425212069,1781592645000,-500.0,0.00016315,2]
[425212078,1781592645000,-500.0,0.00016315,2]
[425212085,1781592645000,-218.77084209,0.00016338,2]
[425212089,1781592645000,-266.24364084,0.00016415,2]
[425212090,1781592645000,-5215.42,0.00016415,2]
[425212081,1781592645000,-500.0,0.0001633,2]
[425212082,1781592645000,-500.0,0.0001633,2]
[425212080,1781592645000,-500.0,0.0001633,2]
[425212083,1781592645000,-210.93456949,0.00016338,2]
[425212094,1781592645000,-500.0,0.00016415,2]
[425212091,1781592645000,-500.0,0.00016415,2]
[425212092,1781592645000,-500.0,0.00016415,2]
[425212065,1781592645000,-593.23,0.00016314,2]
[425212087,1781592645000,-754.91,0.00016415,2]
[425212067,1781592645000,-500.0,0.00016315,2]
[425212049,1781592645000,-916.52,0.00016141,2]
[425212063,1781592645000,-500.0,0.00016314,2]
[425212096,1781592645000,-500.0,0.00016415,2]
[425212043,1781592645000,-500.0,0.00016141,2]
[425212045,1781592645000,-500.0,0.00016141,2]
[425212044,1781592645000,-5215.42,0.00016141,2]
[425212047,1781592645000,-500.0,0.00016141,2]
[425212046,1781592645000,-500.0,0.00016141,2]
[425212048,1781592645000,-500.0,0.00016141,2]
[425212050,1781592645000,-500.0,0.00016141,2]
[425212056,1781592645000,-500.0,0.00016141,2]
[425212057,1781592645000,-500.0,0.00016314,2]
[425212064,1781592645000,-500.0,0.00016314,2]
[425212058,1781592645000,-500.0,0.00016314,2]
[425212061,1781592645000,-500.0,0.00016314,2]
[425212052,1781592645000,-500.0,0.00016141,2]
[425212060,1781592645000,-500.0,0.00016314,2]
[425212051,1781592645000,-500.0,0.00016141,2]
[425212062,1781592645000,-500.0,0.00016314,2]
[425212053,1781592645000,-1380.58,0.00016141,2]
[425212055,1781592645000,-541.43,0.00016141,2]
[425212054,1781592645000,-500.0,0.00016141,2]
[425212074,1781592645000,-937.14,0.00016315,2]
[425212075,1781592645000,-368.30849221,0.00016315,2]
[425212059,1781592645000,-500.0,0.00016314,2]
[425212100,1781592645000,-500.0,0.00016415,2]
[425212077,1781592645000,-881.47,0.00016315,2]
[425212105,1781592645000,-500.0,0.00016415,2]
[425212131,1781592645000,-877.5,0.00016438,2]
[425212125,1781592645000,-500.0,0.00016438,2]
[425212133,1781592645000,-500.0,0.00016438,2]
[425212134,1781592645000,-500.0,0.00016438,2]
[425212132,1781592645000,-500.0,0.00016438,2]
[425212135,1781592645000,-160.460192,0.0001644,2]
[425212136,1781592645000,-5184.0328996,0.00016581,2]
[425212139,1781592645000,-500.0,0.00016588,2]
[425212138,1781592645000,-500.0,0.00016588,2]
[425212137,1781592645000,-500.0,0.00016588,2]
[425212148,1781592645000,-505.0,0.00016589,2]
[425212140,1781592645000,-500.0,0.00016588,2]
[425212144,1781592645000,-500.0,0.00016588,2]
[425212142,1781592645000,-500.0,0.00016588,2]
[425212147,1781592645000,-500.0,0.00016589,2]
[425212146,1781592645000,-722.33,0.00016589,2]
[425212145,1781592645000,-593.23,0.00016588,2]
[425212141,1781592645000,-500.0,0.00016588,2]
[425212150,1781592645000,-500.0,0.00016589,2]
[425212151,1781592645000,-500.0,0.00016589,2]
[425212152,1781592645000,-500.0,0.00016589,2]
[425212149,1781592645000,-500.0,0.00016589,2]
[425212107,1781592645000,-599.75,0.00016438,2]
[425212130,1781592645000,-500.0,0.00016438,2]
[425212129,1781592645000,-444.22488253,0.00016438,2]
[425212143,1781592645000,-500.0,0.00016588,2]
[425212127,1781592645000,-500.0,0.00016438,2]
[425212123,1781592645000,-500.0,0.00016438,2]
[425212103,1781592645000,-500.0,0.00016415,2]
[425212106,1781592645000,-500.0,0.00016437,2]
[425212099,1781592645000,-500.0,0.00016415,2]
[425212101,1781592645000,-500.0,0.00016415,2]
[425212104,1781592645000,-541.43,0.00016415,2]
[425212098,1781592645000,-916.52,0.00016415,2]
[425212109,1781592645000,-500.0,0.00016438,2]
[425212108,1781592645000,-500.0,0.00016438,2]
[425212119,1781592645000,-500.0,0.00016438,2]
[425212121,1781592645000,-500.0,0.00016438,2]
[425212102,1781592645000,-1380.58,0.00016415,2]
[425212116,1781592645000,-500.0,0.00016438,2]
[425212111,1781592645000,-500.0,0.00016438,2]
[425212110,1781592645000,-500.0,0.00016438,2]
[425212120,1781592645000,-500.0,0.00016438,2]
[425212117,1781592645000,-500.0,0.00016438,2]
[425212114,1781592645000,-500.0,0.00016438,2]
[425212113,1781592645000,-500.0,0.00016438,2]
[425212124,1781592645000,-500.0,0.00016438,2]
[425212115,1781592645000,-500.0,0.00016438,2]
[425212118,1781592645000,-500.0,0.00016438,2]
[425212122,1781592645000,-500.0,0.00016438,2]
[425212153,1781592645000,-500.0,0.00016589,2]
[425212189,1781592646000,-530.66057014,0.00016712,2]
[425212190,1781592646000,-500.0,0.00016712,2]
[425212197,1781592646000,-500.0,0.00016712,2]
[425212212,1781592646000,-500.0,0.00016712,2]
[425212198,1781592646000,-500.0,0.00016712,2]
[425212193,1781592646000,-261.9545044,0.00016712,2]
[425212196,1781592646000,-783.62176832,0.00016712,2]
[425212194,1781592646000,-435.34542684,0.00016712,2]
[425212200,1781592646000,-500.0,0.00016712,2]
[425212192,1781592646000,-500.0,0.00016712,2]
[425212188,1781592646000,-294.81142785,0.00016712,2]
[425212211,1781592646000,-500.0,0.00016712,2]
[425212199,1781592646000,-500.0,0.00016712,2]
[425212214,1781592646000,-943.39656914,0.00016712,2]
[425212216,1781592646000,-10023.63294377,0.000168,2]
[425212203,1781592646000,-500.0,0.00016712,2]
[425212202,1781592646000,-500.0,0.00016712,2]
[425212213,1781592646000,-500.0,0.00016712,2]
[425212208,1781592646000,-500.0,0.00016712,2]
[425212205,1781592646000,-280.67436657,0.00016712,2]
[425212201,1781592646000,-500.0,0.00016712,2]
[425212210,1781592646000,-877.5,0.00016712,2]
[425212206,1781592646000,-500.0,0.00016712,2]
[425212207,1781592646000,-500.0,0.00016712,2]
[425212209,1781592646000,-500.0,0.00016712,2]
[425212220,1781592646000,-500.0,0.00016862,2]
[425212218,1781592646000,-306.56,0.00016852,2]
[425212191,1781592646000,-159.28706379,0.00016712,2]
[425212204,1781592646000,-500.0,0.00016712,2]
[425212195,1781592646000,-500.0,0.00016712,2]
[425212157,1781592646000,-500.0,0.00016589,2]
[425212176,1781592646000,-916.52,0.00016689,2]
[425212161,1781592646000,-500.0,0.00016604,2]
[425212163,1781592646000,-500.0,0.00016604,2]
[425212159,1781592646000,-500.0,0.00016604,2]
[425212158,1781592646000,-500.0,0.00016589,2]
[425212156,1781592646000,-881.47,0.00016589,2]
[425212219,1781592646000,-373.36,0.00016859,2]
[425212155,1781592646000,-782.35,0.00016589,2]
[425212154,1781592646000,-937.14,0.00016589,2]
[425212164,1781592646000,-160.0,0.00016645,2]
[425212167,1781592646000,-5170.762897,0.00016645,2]
[425212166,1781592646000,-2665.381448,0.00016645,2]
[425212173,1781592646000,-500.0,0.00016689,2]
[425212172,1781592646000,-500.0,0.00016689,2]
[425212170,1781592646000,-500.0,0.00016689,2]
[425212168,1781592646000,-200.0,0.00016658,2]
[425212169,1781592646000,-754.91,0.00016689,2]
[425212174,1781592646000,-500.0,0.00016689,2]
[425212171,1781592646000,-5215.42,0.00016689,2]
[425212177,1781592646000,-500.0,0.00016689,2]
[425212179,1781592646000,-515.8371076,0.00016689,2]
[425212178,1781592646000,-500.0,0.00016689,2]
[425212175,1781592646000,-500.0,0.00016689,2]
[425212181,1781592646000,-500.0,0.00016689,2]
[425212186,1781592646000,-599.75,0.00016712,2]
[425212182,1781592646000,-541.43,0.00016689,2]
[425212187,1781592646000,-500.0,0.00016712,2]
[425212184,1781592646000,-500.0,0.00016711,2]
[425212185,1781592646000,-605.06696015,0.00016712,2]
[425212183,1781592646000,-500.0,0.00016689,2]
[425212180,1781592646000,-1380.58,0.00016689,2]
[425212222,1781592646000,-500.0,0.00016862,2]
[425212217,1781592646000,-1286.98797099,0.000168,2]
[425212215,1781592646000,-306.56,0.00016788,2]
[425212257,1781592646000,-5215.42,0.00016963,2]
[425212267,1781592646000,-541.43,0.00016963,2]
[425212259,1781592646000,-500.0,0.00016963,2]
[425212261,1781592646000,-285.41238703,0.00016963,2]
[425212262,1781592646000,-916.52,0.00016963,2]
[425212268,1781592646000,-500.0,0.00016963,2]
[425212260,1781592646000,-510.35957862,0.00016963,2]
[425212264,1781592646000,-500.0,0.00016963,2]
[425212256,1781592646000,-500.0,0.00016963,2]
[425212258,1781592646000,-500.0,0.00016963,2]
[425212266,1781592646000,-500.0,0.00016963,2]
[425212263,1781592646000,-500.0,0.00016963,2]
[425212265,1781592646000,-1380.58,0.00016963,2]
[425212269,1781592646000,-258.18,0.00016976,3]
[425212251,1781592646000,-160.0,0.00016918,2]
[425212271,1781592646000,-500.0,0.00016985,2]
[425212276,1781592646000,-500.0,0.00016986,2]
[425212277,1781592646000,-500.0,0.00016986,2]
[425212278,1781592646000,-500.0,0.00016986,2]
[425212281,1781592646000,-500.0,0.00016986,2]
[425212274,1781592646000,-500.0,0.00016986,2]
[425212273,1781592646000,-500.0,0.00016986,2]
[425212279,1781592646000,-500.0,0.00016986,2]
[425212275,1781592646000,-500.0,0.00016986,2]
[425212280,1781592646000,-500.0,0.00016986,2]
[425212270,1781592646000,-774.58,0.00016976,3]
[425212283,1781592646000,-500.0,0.00016986,2]
[425212223,1781592646000,-500.0,0.00016862,2]
[425212284,1781592646000,-500.0,0.00016986,2]
[425212285,1781592646000,-500.0,0.00016986,2]
[425212272,1781592646000,-599.75,0.00016986,2]
[425212253,1781592646000,-160.0,0.00016918,2]
[425212282,1781592646000,-500.0,0.00016986,2]
[425212249,1781592646000,-237.925337,0.00016905,2]
[425212244,1781592646000,-500.0,0.00016878,2]
[425212224,1781592646000,-445.32105213,0.00016862,2]
[425212227,1781592646000,-500.0,0.00016862,2]
[425212228,1781592646000,-593.23,0.00016862,2]
[425212225,1781592646000,-500.0,0.00016862,2]
[425212226,1781592646000,-568.42586806,0.00016862,2]
[425212230,1781592646000,-500.0,0.00016863,2]
[425212240,1781592646000,-500.0,0.00016863,2]
[425212242,1781592646000,-500.0,0.00016878,2]
[425212241,1781592646000,-500.0,0.00016863,2]
[425212232,1781592646000,-345.78228781,0.00016863,2]
[425212231,1781592646000,-505.0,0.00016863,2]
[425212229,1781592646000,-722.33,0.00016863,2]
[425212233,1781592646000,-500.0,0.00016863,2]
[425212221,1781592646000,-500.0,0.00016862,2]
[425212237,1781592646000,-937.14,0.00016863,2]
[425212254,1781592646000,-769.86702256,0.00016918,2]
[425212255,1781592646000,-754.91,0.00016963,2]
[425212252,1781592646000,-160.0,0.00016918,2]
[425212250,1781592646000,-160.0,0.00016918,2]
[425212234,1781592646000,-500.0,0.00016863,2]
[425212245,1781592646000,-10023.63294377,0.000169,2]
[425212247,1781592646000,-160.0,0.00016905,2]
[425212248,1781592646000,-198.962668,0.00016905,2]
[425212243,1781592646000,-500.0,0.00016878,2]
[425212239,1781592646000,-881.47,0.00016863,2]
[425212236,1781592646000,-502.3173253,0.00016863,2]
[425212238,1781592646000,-782.35,0.00016863,2]
[425212235,1781592646000,-500.0,0.00016863,2]
[425212246,1781592646000,-1286.98797099,0.000169,2]
[425212329,1781592647000,-1380.58,0.00017236,2]
[425212319,1781592647000,-500.0,0.00017152,2]
[425212323,1781592647000,-5215.42,0.00017236,2]
[425212320,1781592647000,-438.866953,0.00017189,2]
[425212325,1781592647000,-500.0,0.00017236,2]
[425212317,1781592647000,-500.0,0.00017152,2]
[425212327,1781592647000,-590.26979037,0.00017236,2]
[425212321,1781592647000,-754.91,0.00017236,2]
[425212324,1781592647000,-500.0,0.00017236,2]
[425212326,1781592647000,-916.52,0.00017236,2]
[425212318,1781592647000,-500.0,0.00017152,2]
[425212322,1781592647000,-500.0,0.00017236,2]
[425212331,1781592647000,-541.43,0.00017236,2]
[425212334,1781592647000,-500.0,0.00017259,2]
[425212333,1781592647000,-1393.1053659,0.00017249,2]
[425212332,1781592647000,-500.0,0.00017236,2]
[425212342,1781592647000,-500.0,0.0001726,2]
[425212337,1781592647000,-500.0,0.0001726,2]
[425212339,1781592647000,-500.0,0.0001726,2]
[425212336,1781592647000,-500.0,0.0001726,2]
[425212338,1781592647000,-500.0,0.0001726,2]
[425212330,1781592647000,-500.0,0.00017236,2]
[425212340,1781592647000,-500.0,0.0001726,2]
[425212341,1781592647000,-500.0,0.0001726,2]
[425212343,1781592647000,-500.0,0.0001726,2]
[425212328,1781592647000,-645.26053757,0.00017236,2]
[425212344,1781592647000,-500.0,0.0001726,2]
[425212335,1781592647000,-599.75,0.0001726,2]
[425212314,1781592647000,-881.47,0.00017137,2]
[425212301,1781592647000,-500.0,0.00017136,2]
[425212316,1781592647000,-500.0,0.00017137,2]
[425212354,1781592647000,-500.0,0.0001726,2]
[425212287,1781592647000,-500.0,0.00016986,2]
[425212286,1781592647000,-500.0,0.00016986,2]
[425212288,1781592647000,-500.0,0.00016986,2]
[425212289,1781592647000,-877.5,0.00016986,2]
[425212290,1781592647000,-500.0,0.00016986,2]
[425212291,1781592647000,-500.0,0.00016986,2]
[425212294,1781592647000,-200.0,0.00017,2]
[425212296,1781592647000,-306.56,0.00017077,2]
[425212297,1781592647000,-10023.63294377,0.000171,2]
[425212298,1781592647000,-1286.98797099,0.000171,2]
[425212293,1781592647000,-103135.64019003,0.00017,2]
[425212295,1781592647000,-151.779173,0.00017,2]
[425212312,1781592647000,-937.14,0.00017137,2]
[425212299,1781592647000,-500.0,0.00017136,2]
[425212303,1781592647000,-500.0,0.00017136,2]
[425212302,1781592647000,-500.0,0.00017136,2]
[425212300,1781592647000,-500.0,0.00017136,2]
[425212304,1781592647000,-500.0,0.00017136,2]
[425212305,1781592647000,-593.23,0.00017136,2]
[425212309,1781592647000,-500.0,0.00017137,2]
[425212306,1781592647000,-722.33,0.00017137,2]
[425212308,1781592647000,-505.0,0.00017137,2]
[425212307,1781592647000,-500.0,0.00017137,2]
[425212311,1781592647000,-500.0,0.00017137,2]
[425212310,1781592647000,-361.52266893,0.00017137,2]
[425212313,1781592647000,-782.35,0.00017137,2]
[425212315,1781592647000,-500.0,0.00017137,2]
[425212292,1781592647000,-500.0,0.00016986,2]
[425212353,1781592647000,-500.0,0.0001726,2]
[425212401,1781592647000,-599.75,0.00017534,2]
[425212347,1781592647000,-414.04388224,0.0001726,2]
[425212381,1781592647000,-500.0,0.00017426,2]
[425212382,1781592647000,-215.7535058,0.00017426,2]
[425212383,1781592647000,-500.0,0.00017426,2]
[425212385,1781592647000,-180.04501125,0.00017475,2]
[425212386,1781592647000,-3198.457738,0.00017477,2]
[425212384,1781592647000,-373.36,0.00017431,2]
[425212388,1781592647000,-1286.98797099,0.000175,2]
[425212391,1781592647000,-5215.42,0.0001751,2]
[425212392,1781592647000,-500.0,0.0001751,2]
[425212390,1781592647000,-500.0,0.0001751,2]
[425212387,1781592647000,-10023.63294377,0.000175,2]
[425212389,1781592647000,-754.91,0.0001751,2]
[425212406,1781592647000,-500.0,0.00017534,2]
[425212393,1781592647000,-500.0,0.0001751,2]
[425212404,1781592647000,-412.95549224,0.00017534,2]
[425212405,1781592647000,-500.0,0.00017534,2]
[425212400,1781592647000,-500.0,0.00017533,2]
[425212396,1781592647000,-500.0,0.0001751,2]
[425212403,1781592647000,-500.0,0.00017534,2]
[425212398,1781592647000,-500.0,0.0001751,2]
[425212397,1781592647000,-541.43,0.0001751,2]
[425212402,1781592647000,-500.0,0.00017534,2]
[425212395,1781592647000,-1380.58,0.0001751,2]
[425212399,1781592647000,-1474.05713927,0.0001753,2]
[425212408,1781592647000,-500.0,0.00017534,2]
[425212407,1781592647000,-500.0,0.00017534,2]
[425212351,1781592647000,-500.0,0.0001726,2]
[425212380,1781592647000,-501.84250608,0.00017411,2]
[425212376,1781592647000,-937.14,0.00017411,2]
[425212394,1781592647000,-916.52,0.0001751,2]
[425212377,1781592647000,-782.35,0.00017411,2]
[425212349,1781592647000,-500.0,0.0001726,2]
[425212375,1781592647000,-500.0,0.00017411,2]
[425212345,1781592647000,-500.0,0.0001726,2]
[425212346,1781592647000,-500.0,0.0001726,2]
[425212350,1781592647000,-500.0,0.0001726,2]
[425212352,1781592647000,-877.5,0.0001726,2]
[425212348,1781592647000,-500.0,0.0001726,2]
[425212356,1781592647000,-306.56,0.0001726,2]
[425212365,1781592647000,-500.0,0.0001741,2]
[425212364,1781592647000,-195.51953097,0.0001741,2]
[425212366,1781592647000,-500.0,0.0001741,2]
[425212362,1781592647000,-1286.98797099,0.000173,2]
[425212357,1781592647000,-306.56,0.00017285,2]
[425212355,1781592647000,-500.0,0.0001726,2]
[425212361,1781592647000,-10023.63294377,0.000173,2]
[425212371,1781592647000,-722.33,0.00017411,2]
[425212358,1781592647000,-150.517,0.00017291,2]
[425212367,1781592647000,-500.0,0.0001741,2]
[425212360,1781592647000,-268.661,0.00017291,2]
[425212363,1781592647000,-306.56,0.00017367,2]
[425212368,1781592647000,-500.0,0.0001741,2]
[425212369,1781592647000,-500.0,0.0001741,2]
[425212370,1781592647000,-593.23,0.0001741,2]
[425212378,1781592647000,-881.47,0.00017411,2]
[425212379,1781592647000,-500.0,0.00017411,2]
[425212372,1781592647000,-500.0,0.00017411,2]
[425212359,1781592647000,-151.125,0.00017291,2]